bitfinex/quotes_SOLUSD_20240716
["timestamp","ask_amount","ask_price","bid_price","bid_amount"]
[1721113234870,43.68,154.58,154.42,10.0]
[1721113235194,0.7943647,154.61,154.47,19.5]
[1721113235360,0.7943647,154.61,154.48,20.0]
[1721113235889,6.4686,154.6,154.48,20.0]
[1721113236081,0.7943647,154.61,154.46,20.0]
[1721113236282,6.4696,154.57,154.46,20.0]
[1721113236463,43.68,154.6,154.46,20.0]
[1721113236662,0.7943647,154.61,154.46,20.0]
[1721113236969,0.7943647,154.61,154.49,10.0]
[1721113237157,0.7943647,154.61,154.51,6.4514]
[1721113237360,0.7943647,154.61,154.52,20.0]
[1721113239267,6.465,154.68,154.52,20.0]
[1721113239582,43.68,154.7,154.52,20.0]
[1721113239785,43.68,154.71,154.53,25.0307]
[1721113239969,43.68,154.74,154.56,10.0]
[1721113240284,43.68,154.74,154.57,20.0]
[1721113240590,43.68,154.74,154.54,30.0]
[1721113240591,43.9743647,154.76,154.55,53.68]
[1721113240766,6.4621,154.75,154.59,6.2678]
[1721113240964,6.4621,154.75,154.6,20.0]
[1721113241165,6.4625,154.74,154.6,20.0]
[1721113241477,0.2943647,154.76,154.6,30.0]
[1721113241995,0.2943647,154.76,154.63,15.2537]
[1721113242291,0.2943647,154.76,154.65,6.0241]
[1721113243161,0.2943647,154.76,154.66,21.29005499]
[1721113243372,0.2943647,154.76,154.66,20.0]
[1721113243792,8.87491506,154.84,154.68,10.0]
[1721113243983,0.0407217,154.84,154.7,10.0]
[1721113244160,0.0407217,154.84,154.69,20.0]
[1721113244487,0.0407217,154.84,154.65,6.0241]
[1721113244488,43.68,154.83,154.65,6.0241]
[1721113244684,43.68,154.83,154.65,16.0241]
[1721113244887,43.68,154.83,154.68,10.0]
[1721113245275,6.4587,154.83,154.68,10.0]
[1721113245470,0.0407217,154.84,154.66,10.0]
[1721113245881,0.0407217,154.84,154.67,20.0]
[1721113246080,6.4993217,154.84,154.68,10.0]
[1721113246286,0.0407217,154.84,154.7,10.0]
[1721113246592,0.0407217,154.84,154.72,6.1802]
[1721113246773,0.0407217,154.84,154.73,20.0]
[1721113247473,0.0407217,154.84,154.75,10.0]
[1721113247781,0.0407217,154.84,154.76,20.0]
[1721113248368,1.0293647,154.91,154.8,6.4169]
[1721113248588,1.0293647,154.91,154.81,30.0]
[1721113248790,1.0293647,154.91,154.81,20.0]
[1721113249470,1.0293647,154.91,154.81,30.0]
[1721113250085,1.0293647,154.91,154.83,10.0]
[1721113250287,1.0293647,154.91,154.84,20.0]
[1721113251584,1.0293647,154.91,154.83,20.0]
[1721113251792,1.0293647,154.91,154.81,20.0]
[1721113252089,1.0293647,154.91,154.8,6.4169]
[1721113252294,1.0293647,154.91,154.81,10.0]
[1721113253167,1.0293647,154.91,154.83,10.0]
[1721113253367,1.0293647,154.91,154.84,20.0]
[1721113253769,1.0293647,154.91,154.83,20.0]
[1721113253970,1.0293647,154.91,154.8,6.4169]
[1721113254471,6.457,154.87,154.8,6.4169]
[1721113254671,43.68,154.86,154.72,6.1999]
[1721113254879,6.4599,154.81,154.72,6.1999]
[1721113255103,6.4593,154.82,154.72,6.1999]
[1721113255270,6.46,154.8,154.72,6.1999]
[1721113255472,43.68,154.83,154.72,6.1999]
[1721113255889,6.4594,154.82,154.72,6.1999]
[1721113256103,6.4595,154.81,154.72,6.1999]
[1721113256292,6.4586,154.84,154.72,6.1999]
[1721113256615,43.68,154.85,154.72,6.1999]
[1721113256899,6.4574,154.87,154.72,25.6999]
[1721113257071,6.4574,154.87,154.72,35.6999]
[1721113257278,60.8482647,154.91,154.72,35.6999]
[1721113257505,80.3482647,154.91,154.72,25.6999]
[1721113257705,6.4568,154.88,154.73,20.0]
[1721113258000,43.68,154.88,154.73,39.5]
[1721113258191,44.7093647,154.91,154.73,20.0]
[1721113258374,44.7093647,154.91,154.73,49.5]
[1721113258770,1.0293647,154.91,154.77,19.5]
[1721113259005,1.0293647,154.91,154.78,20.0]
[1721113259294,1.0293647,154.91,154.78,39.5]
[1721113259502,1.0293647,154.91,154.78,49.5]
[1721113259679,1.0293647,154.91,154.8,19.5]
[1721113259867,1.0293647,154.91,154.81,20.0]
[1721113260476,1.0293647,154.91,154.8,20.0]
[1721113260880,1.0293647,154.91,154.8,39.5]
[1721113261187,1.0293647,154.91,154.83,29.5]
[1721113261399,1.0293647,154.91,154.85,19.5]
[1721113261691,1.0293647,154.91,154.84,20.0]
[1721113262277,1.0293647,154.91,154.83,20.0]
[1721113262482,6.4557,154.9,154.79,6.268]
[1721113262687,6.4566,154.88,154.79,6.268]
[1721113262887,6.4572,154.87,154.79,6.268]
[1721113263106,6.4571,154.87,154.79,6.268]
[1721113263306,6.4568,154.88,154.79,6.268]
[1721113263601,1.0293647,154.91,154.79,6.268]
[1721113263602,7.4847647,154.91,154.79,6.268]
[1721113263979,1.0293647,154.91,154.8,20.0]
[1721113264180,1.0293647,154.91,154.79,6.268]
[1721113264482,43.68,154.86,154.73,21.1464]
[1721113264681,43.68,154.86,154.73,6.0773]
[1721113264886,6.459,154.83,154.73,6.0773]
[1721113265108,43.68,154.86,154.73,6.0773]
[1721113265400,6.4587,154.83,154.73,6.0773]
[1721113265702,43.68,154.86,154.73,6.0773]
[1721113265911,6.4581,154.85,154.73,6.0773]
[1721113266090,6.4583,154.84,154.73,6.0773]
[1721113266280,43.68,154.86,154.73,6.0773]
[1721113266488,43.68,154.86,154.74,20.0]
[1721113266688,6.4583,154.84,154.74,20.0]
[1721113266887,6.4591,154.82,154.73,6.0773]
[1721113267100,6.4586,154.84,154.73,6.0773]
[1721113267284,43.68,154.86,154.73,6.0773]
[1721113267484,6.4557,154.9,154.73,35.5773]
[1721113268022,6.4586,154.84,154.74,20.0]
[1721113268305,44.7093647,154.91,154.74,39.5]
[1721113268306,50.1366,154.88,154.74,39.5]
[1721113268493,6.4564,154.89,154.74,39.5]
[1721113268688,51.1646647,154.91,154.76,19.5]
[1721113268919,51.1646647,154.91,154.78,19.5]
[1721113269201,44.7093647,154.91,154.79,20.0]
[1721113269380,7.4847647,154.91,154.79,20.0]
[1721113269587,6.4563,154.89,154.79,20.0]
[1721113269785,6.4563,154.89,154.77,20.0]
[1721113269991,6.4563,154.89,154.76,19.5]
[1721113270193,6.4563,154.89,154.77,20.0]
[1721113270423,1.0293647,154.91,154.73,6.0773]
[1721113270424,17.1682647,154.91,154.73,6.0773]
[1721113270615,43.68,154.85,154.73,6.0773]
[1721113271218,43.68,154.88,154.73,6.0773]
[1721113271634,6.4574,154.86,154.73,25.5773]
[1721113271823,43.68,154.88,154.73,35.5773]
[1721113272030,51.1650647,154.91,154.75,29.5]
[1721113272338,51.1650647,154.91,154.74,20.0]
[1721113272339,6.4566,154.89,154.76,20.0]
[1721113272509,51.46509519,154.91,154.75,29.5]
[1721113272707,51.46509519,154.91,154.76,39.5]
[1721113273522,6.4559,154.9,154.76,39.5]
[1721113273721,7.78509519,154.91,154.76,39.5]
[1721113273931,6.4569,154.88,154.76,20.0]
[1721113274116,7.78509519,154.91,154.79,10.0]
[1721113274444,1.0293647,154.91,154.8,20.0]
[1721113275034,1.0293647,154.91,154.79,20.0]
[1721113275035,7.4846647,154.91,154.79,20.0]
[1721113275234,6.4559,154.9,154.79,20.0]
[1721113275415,6.4559,154.9,154.78,20.0]
[1721113275609,7.4846647,154.91,154.78,20.0]
[1721113275809,6.4566,154.88,154.78,20.0]
[1721113276016,7.4847647,154.91,154.78,20.0]
[1721113276617,6.4563,154.89,154.78,20.0]
[1721113276838,1.0293647,154.91,154.78,20.0]
[1721113278221,43.68,154.9,154.73,6.0773]
[1721113278423,43.68,154.86,154.73,6.0773]
[1721113278836,43.68,154.83,154.66,13.04455281]
[1721113279041,6.4599,154.81,154.66,13.04455281]
[1721113279243,6.4599,154.81,154.66,23.04455281]
[1721113279419,6.4594,154.82,154.66,23.04455281]
[1721113279623,43.68,154.83,154.66,13.04455281]
[1721113279833,6.4596,154.81,154.67,19.5]
[1721113280160,43.68,154.83,154.69,19.5]
[1721113280552,43.68,154.83,154.7,39.5]
[1721113280718,76.20008664,154.9,154.74,19.5]
[1721113280919,43.68,154.9,154.77,19.5]
[1721113281142,43.68,154.9,154.78,20.0]
[1721113281551,6.4566,154.88,154.78,20.0]
[1721113281737,43.68,154.87,154.76,6.5901]
[1721113281915,6.4583,154.84,154.76,6.5901]
[1721113282121,6.4587,154.83,154.76,6.5901]
[1721113282425,43.68,154.84,154.68,6.5901]
[1721113282625,6.4591,154.82,154.68,6.5901]
[1721113283041,50.1386,154.84,154.68,6.5901]
[1721113283355,6.4595,154.82,154.68,26.0901]
[1721113283525,43.68,154.84,154.68,6.5901]
[1721113283921,6.4594,154.82,154.68,6.5901]
[1721113284116,43.68,154.84,154.68,6.5901]
[1721113284117,43.68,154.84,154.69,11.29220777]
[1721113284432,6.4574,154.86,154.7,19.5]
[1721113284634,43.68,154.87,154.72,19.5]
[1721113284841,6.4578,154.86,154.73,1.29171166]
[1721113285026,43.68,154.87,154.72,19.5]
[1721113285223,6.4574,154.86,154.73,20.0]
[1721113285532,6.4579,154.85,154.73,20.0]
[1721113285837,32.92532174,154.88,154.73,20.0]
[1721113285838,32.72791571,154.89,154.74,26.0299]
[1721113286036,32.72791571,154.89,154.75,20.0]
[1721113286263,39.68154073,154.88,154.75,20.0]
[1721113286548,6.4589,154.83,154.75,20.0]
[1721113286848,39.68154073,154.88,154.76,1.07565344]
[1721113287844,6.75621899,154.88,154.77,19.5]
[1721113288044,6.75621899,154.88,154.78,21.29138623]
[1721113288219,1.0293647,154.91,154.78,40.79138623]
[1721113289037,1.0293647,154.91,154.81,25.982]
[1721113289245,1.0293647,154.91,154.81,6.482]
[1721113289617,44.7093647,154.91,154.81,6.482]
[1721113290248,51.1646647,154.91,154.81,6.482]
[1721113290463,1.0293647,154.91,154.82,1.29145503]
[1721113291347,1.0293647,154.91,154.83,29.5]
[1721113291553,1.0293647,154.91,154.84,39.5]
[1721113291922,1.0293647,154.91,154.81,6.482]
[1721113292226,7.4850647,154.91,154.81,6.482]
[1721113292456,1.0293647,154.91,154.82,20.0]
[1721113292622,1.0293647,154.91,154.83,0.56696126]
[1721113292829,1.0293647,154.91,154.83,0.82196261]
[1721113293027,1.0293647,154.91,154.83,1.29111563]
[1721113293249,1.0293647,154.91,154.82,20.0]
[1721113293930,1.0293647,154.91,154.83,1.2912454]
[1721113294130,1.0293647,154.91,154.84,19.5]
[1721113294326,1.0293647,154.91,154.85,40.79083287]
[1721113294649,1.0293647,154.91,154.85,39.5]
[1721113294821,43.68,154.99,154.86,36.1381]
[1721113295026,6.451,155.02,154.87,39.5]
[1721113295230,50.1299,155.04,154.88,1.29058257]
[1721113295443,50.1299,155.04,154.89,19.5]
[1721113295649,43.68,155.04,154.9,39.5]
[1721113295819,43.68,155.04,154.9,40.79035302]
[1721113296023,44.4743647,155.07,154.92,19.5]
[1721113296224,44.4743647,155.07,154.93,39.5]
[1721113296538,0.7943647,155.07,154.95,19.5]
[1721113296745,0.7943647,155.07,154.96,20.0]
[1721113297128,0.7943647,155.07,154.98,6.0757]
[1721113297544,7.2431647,155.07,154.98,6.0757]
[1721113297744,0.7943647,155.07,154.98,6.0757]
[1721113297932,0.7943647,155.07,154.92,6.0757]
[1721113297933,6.4509,155.02,154.92,6.0757]
[1721113298127,44.4743647,155.07,154.93,20.0]
[1721113298541,6.4504,155.03,154.93,20.0]
[1721113298734,6.4503,155.04,154.93,20.0]
[1721113298935,44.4743647,155.07,154.93,20.0]
[1721113299131,44.4743647,155.07,154.94,0.67642831]
[1721113299366,44.4743647,155.07,154.93,20.0]
[1721113299557,6.45,155.04,154.93,20.0]
[1721113299734,6.4503,155.03,154.93,20.0]
[1721113300052,44.4743647,155.07,154.93,20.0]
[1721113300554,44.4743647,155.07,154.93,49.5]
[1721113300854,0.7943647,155.07,154.93,49.5]
[1721113301372,0.7943647,155.07,154.96,19.5]
[1721113301703,0.7943647,155.07,154.97,57.25657422]
[1721113301830,0.7943647,155.07,154.97,55.9668]
[1721113302029,0.7943647,155.07,154.97,36.4668]
[1721113302267,0.7943647,155.07,154.98,1.28979434]
[1721113302554,0.7943647,155.07,154.97,36.4668]
[1721113303259,0.7943647,155.07,154.98,1.28995262]
[1721113303456,0.7943647,155.07,154.98,21.28995262]
[1721113303633,0.7943647,155.07,154.99,20.0]
[1721113303833,0.7943647,155.07,155.0,1.28970246]
[1721113304036,0.7943647,155.07,154.99,20.0]
[1721113304238,0.7943647,155.07,154.98,39.5]
[1721113304640,0.7943647,155.07,154.99,1.28970289]
[1721113304847,0.7943647,155.07,155.0,25.5178]
[1721113305149,0.7943647,155.07,155.01,39.5]
[1721113305956,0.7943647,155.07,155.01,20.0]
[1721113306157,0.7943647,155.07,155.0,6.0178]
[1721113307633,0.7943647,155.07,154.95,6.0142]
[1721113307990,0.7943647,155.07,154.95,25.5142]
[1721113309076,0.7943647,155.07,154.96,39.5]
[1721113309488,0.7943647,155.07,154.96,49.5]
[1721113309690,0.7943647,155.07,154.96,39.5]
[1721113309983,0.7943647,155.07,154.96,49.5]
[1721113310187,0.7943647,155.07,155.0,19.5]
[1721113310359,0.7943647,155.07,155.01,20.0]
[1721113311069,0.7943647,155.07,154.99,20.0]
[1721113311365,0.7943647,155.07,155.01,19.5]
[1721113311567,0.7943647,155.07,155.03,19.5]
[1721113312085,0.7943647,155.07,155.05,19.5]
[1721113312299,0.7943647,155.22,155.06,46.0322]
[1721113312589,0.7943647,155.22,155.06,26.5322]
[1721113312590,6.4429,155.21,155.06,26.5322]
[1721113312892,44.4743647,155.22,155.06,26.5322]
[1721113313084,16.1074,155.21,155.06,26.5322]
[1721113313289,51.21717605,155.22,155.06,26.5322]
[1721113313457,6.4441,155.18,155.06,26.5322]
[1721113313985,0.7943647,155.22,155.14,19.5]
[1721113314154,0.7943647,155.22,155.15,46.107]
[1721113314558,0.7943647,155.22,155.16,1.28826535]
[1721113314788,0.7943647,155.22,155.15,26.607]
[1721113315970,0.7943647,155.22,155.15,46.107]
[1721113316169,0.7943647,155.22,155.16,0.42672765]
[1721113316368,0.7943647,155.22,155.17,1.28830016]
[1721113316696,0.7943647,155.22,155.08,15.8949]
[1721113317277,0.7943647,155.22,155.09,19.5]
[1721113317586,0.7943647,155.22,155.08,15.8949]
[1721113317765,20.7943647,155.22,155.08,15.8949]
[1721113317972,36.9006647,155.22,155.08,15.8949]
[1721113318194,43.68,155.2,155.06,16.0816]
[1721113318362,27.2369647,155.22,155.09,1.28926598]
[1721113318563,0.7943647,155.22,155.06,6.0816]
[1721113319084,6.4437,155.19,155.06,6.0816]
[1721113319292,50.1234,155.2,155.06,6.0816]
[1721113319596,6.4445,155.18,155.06,6.0816]
[1721113319882,6.4449,155.17,155.07,1.28912789]
[1721113320089,43.68,155.2,155.07,1.28912789]
[1721113320264,6.4468,155.12,155.06,6.0816]
[1721113320590,59.7916,155.17,155.02,16.3372]
[1721113320889,20.0,155.16,155.02,35.8372]
[1721113321268,43.68,155.18,155.04,19.5]
[1721113321467,16.108,155.21,155.02,16.3372]
[1721113321765,43.68,155.16,155.03,1.28835565]
[1721113321985,43.68,155.16,155.02,16.3372]
[1721113322294,43.68,155.17,155.02,16.3372]
[1721113322492,43.68,155.17,155.03,1.28958008]
[1721113322677,43.68,155.14,155.01,6.4167]
[1721113322882,43.68,155.11,154.96,16.6581]
[1721113323085,6.4496,155.05,154.96,22.9141]
[1721113323283,43.68,155.08,154.96,22.9141]
[1721113324199,6.4502,155.04,154.96,6.256]
[1721113324391,43.68,155.06,154.96,6.256]
[1721113324700,43.68,155.03,154.91,6.0973]
[1721113324901,43.68,155.0,154.91,6.0973]
[1721113325201,6.4532,154.96,154.86,6.4317]
[1721113325381,43.68,154.97,154.86,6.4317]
[1721113325579,43.68,155.0,154.86,6.4317]
[1721113325783,6.4538,154.95,154.86,6.4317]
[1721113325999,43.68,154.97,154.86,6.4317]
[1721113326585,43.68,155.0,154.87,1.29095306]
[1721113326803,43.68,155.03,154.87,20.79095306]
[1721113326996,43.68,155.03,154.89,19.5]
[1721113327194,6.433,155.1,154.9,50.79035598]
[1721113327195,43.68,155.06,154.9,50.79035598]
[1721113327379,6.45,155.04,154.9,19.5]
[1721113327582,43.68,155.06,154.91,39.5]
[1721113327906,6.4488,155.07,154.93,19.5]
[1721113328202,43.68,155.09,154.95,25.5204]
[1721113328408,43.68,155.09,154.96,20.0]
[1721113328579,6.45,155.04,154.96,20.0]
[1721113328776,50.1295,155.05,154.96,20.0]
[1721113328990,50.1298,155.05,154.96,20.0]
[1721113329191,6.7491859,155.09,154.97,1.27996478]
[1721113329409,20.0,155.08,154.96,20.0]
[1721113329581,43.68,155.12,154.96,39.5]
[1721113329907,43.68,155.12,154.98,19.5]
[1721113330087,43.68,155.12,154.99,20.0]
[1721113330405,43.68,155.15,155.0,1.28881844]
[1721113330607,43.68,155.15,154.99,20.0]
[1721113330794,43.68,155.15,154.99,49.5]
[1721113331115,63.18,155.15,154.99,20.0]
[1721113331411,50.1266,155.12,154.98,20.0]
[1721113331775,6.4502,155.04,154.95,6.0204]
[1721113332086,43.68,155.06,154.95,6.0204]
[1721113332504,6.4513,155.01,154.9,16.4501]
[1721113332677,43.68,155.0,154.9,16.4501]
[1721113332872,43.68,155.03,154.9,16.4501]
[1721113333305,43.68,155.06,154.9,16.4501]
[1721113333609,43.68,155.03,154.9,16.4501]
[1721113333788,6.4508,155.02,154.9,16.4501]
[1721113333990,20.0,155.05,154.9,16.4501]
[1721113334179,43.68,155.03,154.9,16.4501]
[1721113334380,26.4508,155.02,154.91,0.67917108]
[1721113334593,26.4508,155.02,154.9,16.4501]
[1721113334594,20.0,155.02,154.9,16.4501]
[1721113334801,20.0,155.02,154.9,35.9501]
[1721113334978,43.68,155.03,154.9,45.9501]
[1721113335187,43.68,155.06,154.9,35.9501]
[1721113335502,6.4508,155.02,154.91,20.0]
[1721113335688,6.4505,155.03,154.91,20.0]
[1721113335886,6.45,155.04,154.91,20.0]
[1721113336092,63.18,155.06,154.91,20.0]
[1721113336294,43.68,155.03,154.9,16.4501]
[1721113336493,6.4529,154.97,154.9,16.4501]
[1721113336693,6.4522,154.99,154.9,16.4501]
[1721113336905,43.68,154.96,154.89,6.1611]
[1721113337384,19.5,155.0,154.89,6.1611]
[1721113337385,43.68,154.99,154.89,6.1611]
[1721113337585,6.455,154.92,154.83,6.0362]
[1721113337792,43.68,154.96,154.77,16.2233]
[1721113337793,43.68,154.9,154.77,22.2595]
[1721113338006,6.4566,154.88,154.77,22.2595]
[1721113338208,50.1361,154.9,154.77,22.2595]
[1721113338424,20.0,154.89,154.77,22.2595]
[1721113338782,43.68,154.9,154.77,22.2595]
[1721113339724,43.68,154.87,154.77,22.2595]
[1721113339904,43.68,154.87,154.77,6.0362]
[1721113340982,43.68,154.84,154.77,6.0362]
[1721113341320,43.68,154.84,154.68,0.7943647]
[1721113341321,43.68,154.81,154.68,7.0855647]
[1721113341622,20.0,154.8,154.68,7.0855647]
[1721113341980,20.0,154.8,154.68,8.37800786]
[1721113342295,43.68,154.84,154.68,7.0855647]
[1721113342513,20.0,154.83,154.68,7.0855647]
[1721113342801,43.68,154.81,154.68,7.0855647]
[1721113343206,6.4606,154.79,154.68,7.0855647]
[1721113343406,43.68,154.81,154.68,7.0855647]
[1721113343407,6.4608,154.78,154.68,7.0855647]
[1721113343615,43.68,154.81,154.69,1.29269492]
[1721113343995,43.68,154.81,154.68,7.0855647]
[1721113344208,6.4603,154.79,154.68,7.0855647]
[1721113344387,50.1409,154.78,154.68,7.0855647]
[1721113344700,43.68,154.78,154.68,7.0855647]
[1721113345021,43.68,154.78,154.69,1.29266328]
[1721113345207,43.68,154.78,154.68,7.0855647]
[1721113345380,16.145,154.85,154.69,1.29081556]
[1721113345381,43.68,154.81,154.69,1.29081556]
[1721113345806,43.68,154.81,154.69,1.29254422]
[1721113346421,43.68,154.81,154.69,21.29254422]
[1721113346740,43.68,154.81,154.68,7.0855647]
[1721113346931,43.68,154.81,154.69,20.0]
[1721113347135,43.68,154.84,154.7,1.29233472]
[1721113347513,43.68,154.84,154.69,20.0]
[1721113348147,43.68,154.9,154.73,10.0]
[1721113348437,43.68,154.93,154.77,19.5]
[1721113348641,43.68,154.93,154.74,20.0]
[1721113348934,43.68,154.93,154.76,19.5]
[1721113348935,50.1345,154.93,154.76,19.5]
[1721113349135,50.1345,154.93,154.78,26.0964]
[1721113349136,43.68,154.93,154.78,26.0964]
[1721113349309,43.68,154.96,154.79,40.78990792]
[1721113349649,43.68,154.92,154.79,20.0]
[1721113349815,6.4563,154.89,154.79,20.0]
[1721113350013,6.4553,154.91,154.79,20.0]
[1721113350325,6.4558,154.9,154.79,20.0]
[1721113350928,50.1362,154.89,154.79,20.0]
[1721113351106,43.68,154.89,154.79,20.0]
[1721113351323,43.68,154.92,154.79,20.0]
[1721113351541,43.68,154.92,154.8,1.012526]
[1721113351838,43.68,154.92,154.79,20.0]
[1721113352021,50.135,154.92,154.79,20.0]
[1721113352227,43.68,154.92,154.79,20.0]
[1721113352421,43.68,154.89,154.79,20.0]
[1721113352833,43.68,154.89,154.8,1.29176226]
[1721113353234,43.68,154.92,154.79,20.0]
[1721113353743,6.4561,154.9,154.79,20.0]
[1721113353930,6.4553,154.91,154.79,20.0]
[1721113354129,6.4554,154.91,154.79,20.0]
[1721113354348,43.68,154.92,154.79,20.0]
[1721113354518,43.68,154.89,154.78,6.5964]
[1721113355025,43.68,154.86,154.72,15.0526]
[1721113355227,20.0,154.88,154.72,21.1718]
[1721113355437,20.0,154.88,154.72,40.6718]
[1721113355750,20.0,154.88,154.73,0.86077011]
[1721113355937,20.0,154.89,154.74,1.28471648]
[1721113356137,6.4565,154.89,154.72,40.6718]
[1721113356461,20.0,154.9,154.72,50.6718]
[1721113356620,43.68,154.91,154.74,29.5]
[1721113356821,50.43475332,154.96,154.77,19.5]
[1721113356822,43.68,154.94,154.77,19.5]
[1721113357123,43.68,154.94,154.78,21.29149449]
[1721113357124,50.1343,154.94,154.78,21.29149449]
[1721113357355,43.68,154.94,154.78,40.79149449]
[1721113357715,50.1331,154.97,154.78,50.79149449]
[1721113357918,6.4523,154.99,154.83,21.8929]
[1721113358218,6.4523,154.99,154.84,21.29101364]
[1721113358219,43.68,154.99,154.84,21.29101364]
[1721113358423,32.71080451,154.98,154.84,21.29101364]
[1721113358637,32.71080451,154.98,154.84,20.0]
[1721113358828,39.42900022,154.96,154.84,20.0]
[1721113359033,32.97560022,154.96,154.84,20.0]
[1721113359341,6.4538,154.95,154.84,20.0]
[1721113359520,76.65560022,154.96,154.84,20.0]
[1721113360328,6.4542,154.94,154.84,20.0]
[1721113360544,20.0,154.95,154.84,20.0]
[1721113360745,43.68,154.93,154.84,20.0]
[1721113361850,76.65560022,154.96,154.84,20.0]
[1721113362038,32.71080451,154.98,154.84,20.0]
[1721113362355,6.4511,155.02,154.85,1.291015]
[1721113362725,43.68,155.04,154.85,1.291015]
[1721113363050,43.68,155.04,154.87,25.5304]
[1721113363051,50.1299,155.04,154.87,25.5304]
[1721113363356,43.68,155.04,154.9,19.5]
[1721113363532,43.68,155.07,154.91,20.3900474]
[1721113363846,6.4503,155.03,154.91,20.0]
[1721113364050,43.68,155.04,154.89,15.769]
[1721113364051,43.68,155.04,154.9,20.0]
[1721113364421,6.4512,155.01,154.9,20.0]
[1721113364625,6.4508,155.02,154.9,20.0]
[1721113364826,6.4511,155.02,154.9,20.0]
[1721113365033,43.68,155.04,154.9,20.0]
[1721113365548,6.4496,155.05,154.91,1.29046046]
[1721113365760,26.45,155.04,154.9,20.0]
[1721113365945,43.68,155.06,154.91,1.29054475]
[1721113366259,43.68,155.06,154.92,6.0304]
[1721113366463,43.68,155.06,154.93,21.29033234]
[1721113366825,43.68,155.06,154.93,20.0]
[1721113367834,9.06805817,155.14,154.97,10.0]
[1721113368073,6.4449,155.17,155.0,19.5]
[1721113368244,43.68,155.18,155.05,15.769]
[1721113368439,50.1244,155.18,155.06,20.0]
[1721113368641,6.4447,155.17,155.06,20.0]
[1721113368976,63.18,155.18,155.06,20.0]
[1721113369177,6.4456,155.15,155.06,20.0]
[1721113369479,6.4447,155.17,155.06,20.0]
[1721113369645,6.4446,155.17,155.06,20.0]
[1721113370043,43.68,155.18,155.06,20.0]
[1721113370568,43.68,155.21,155.06,20.0]
[1721113370760,6.4434,155.2,155.06,20.0]
[1721113370966,43.68,155.18,155.06,20.0]
[1721113371975,50.1241,155.18,155.06,20.0]
[1721113372269,43.68,155.18,155.06,20.0]
[1721113372479,6.4433,155.2,155.06,20.0]
[1721113372673,43.68,155.21,155.06,20.0]
[1721113372847,6.444,155.19,155.06,20.0]
[1721113373164,6.4442,155.18,155.06,20.0]
[1721113373368,6.4446,155.17,155.06,20.0]
[1721113373569,63.18,155.18,155.05,15.769]
[1721113373747,6.4462,155.13,155.05,15.769]
[1721113374172,50.1256,155.15,155.05,15.769]
[1721113374381,26.4458,155.14,155.05,15.769]
[1721113374673,20.0,155.14,155.05,15.769]
[1721113374843,43.68,155.12,155.05,15.769]
[1721113375044,43.68,155.09,155.04,6.0304]
[1721113375362,43.68,155.09,154.99,6.4711]
[1721113375567,20.0,155.08,154.99,6.4711]
[1721113375776,6.4498,155.05,154.99,6.4711]
[1721113375958,20.0,155.04,154.99,6.4711]
[1721113376552,20.0,155.05,154.99,6.4711]
[1721113376754,26.4496,155.05,154.99,6.4711]